[Event "*** Titled Tuesday 3|2 Blitz"]
[Site "Chess.com"]
[Date "2015.12.01"]
[Round "3"]
[White "MattyDPerrine"]
[Black "GrigorGrigorov"]
[Result "1-0"]
[WhiteElo "2269"]
[BlackElo "2515"]
[TimeControl "180+2"]
[EndTime "17:38:40 PST"]
[Termination "MattyDPerrine won by resignation"]

1. d4 {[%clk 0:02:57.3]} 1... Nf6 {[%clk 0:03:00.1]} 2. c4 {[%clk 0:02:57.2]}
2... e6 {[%clk 0:03:01.2]} 3. Nc3 {[%clk 0:02:58.2]} 3... Bb4 {[%clk 0:03:00.9]}
4. Qc2 {[%clk 0:02:55.7]} 4... c5 {[%clk 0:03:00.6]} 5. dxc5 {[%clk 0:02:55.4]}
5... O-O {[%clk 0:03:01.6]} 6. Nf3 {[%clk 0:02:55.8]} 6... Na6 {[%clk 0:03:02]}
7. g3 {[%clk 0:02:57.1]} 7... Nxc5 {[%clk 0:03:01.3]} 8. Bg2 {[%clk 0:02:58.4]}
8... b6 {[%clk 0:03:00.6]} 9. O-O {[%clk 0:02:55.5]} 9... Bb7 {[%clk 0:03:00.6]}
10. Nb5 {[%clk 0:02:46.7]} 10... Nce4 {[%clk 0:02:55.6]} 11. a3 {[%clk
0:02:45.7]} 11... Be7 {[%clk 0:02:54.5]} 12. Ng5 {[%clk 0:02:30.8]} 12... d5
{[%clk 0:02:54.3]} 13. cxd5 {[%clk 0:02:03.9]} 13... exd5 {[%clk 0:02:46]} 14.
Nf3 {[%clk 0:01:54.1]} 14... Rc8 {[%clk 0:02:39.5]} 15. Qb1 {[%clk 0:01:48.1]}
15... a6 {[%clk 0:02:32.8]} 16. Nbd4 {[%clk 0:01:49.2]} 16... Re8 {[%clk
0:02:32.2]} 17. Bh3 {[%clk 0:01:46.2]} 17... Ra8 {[%clk 0:02:15.1]} 18. Be3
{[%clk 0:01:36.8]} 18... Bc5 {[%clk 0:01:54.3]} 19. Rc1 {[%clk 0:01:32.5]} 19...
a5 {[%clk 0:01:48.2]} 20. b4 {[%clk 0:01:08.5]} 20... axb4 {[%clk 0:01:23.1]}
21. axb4 {[%clk 0:01:10.4]} 21... Rxa1 {[%clk 0:01:22.1]} 22. Qxa1 {[%clk
0:01:12.3]} 22... Bxb4 {[%clk 0:01:23.4]} 23. Qa7 {[%clk 0:01:13.7]} 23... Qa8
{[%clk 0:01:21.7]} 24. Qxb6 {[%clk 0:01:08]} 24... Bf8 {[%clk 0:01:02.2]} 25.
Nb5 {[%clk 0:00:54]} 25... Bc8 {[%clk 0:00:41.9]} 26. Nc7 {[%clk 0:00:33.4]}
26... Qa4 {[%clk 0:00:42.3]} 27. Nxe8 {[%clk 0:00:23]} 27... Bxh3 {[%clk
0:00:43.1]} 28. Nxf6+ {[%clk 0:00:21.1]} 28... Nxf6 {[%clk 0:00:44.2]} 29. Qd8
{[%clk 0:00:20.4]} 29... h6 {[%clk 0:00:35.3]} 30. Bc5 {[%clk 0:00:16.6]} 30...
Nd7 {[%clk 0:00:36.5]} 31. Bxf8 {[%clk 0:00:17.6]} 31... Nxf8 {[%clk 0:00:37.2]}
32. Qxd5 {[%clk 0:00:18.4]} 32... Ne6 {[%clk 0:00:33.7]} 33. Rc8+ {[%clk
0:00:16.2]} 33... Kh7 {[%clk 0:00:34.8]} 34. Qd3+ {[%clk 0:00:17.8]} 34... g6
{[%clk 0:00:29.7]} 35. Rc1 {[%clk 0:00:19.3]} 35... Bf5 {[%clk 0:00:25.3]} 36.
Qc4 {[%clk 0:00:19.4]} 36... Qa7 {[%clk 0:00:23.5]} 37. Ne5 {[%clk 0:00:16.9]}
37... Bh3 {[%clk 0:00:17.1]} 38. Nf3 {[%clk 0:00:11]} 38... Qb7 {[%clk
0:00:15.4]} 39. Qd3 {[%clk 0:00:10]} 39... Kg7 {[%clk 0:00:13.9]} 40. Qc3+
{[%clk 0:00:11]} 40... Kh7 {[%clk 0:00:14.8]} 41. Qd3 {[%clk 0:00:11.3]} 41...
Kg7 {[%clk 0:00:15.3]} 42. Rd1 {[%clk 0:00:12.5]} 42... Bf5 {[%clk 0:00:13.8]}
43. Qd7 {[%clk 0:00:12.7]} 43... Qb3 {[%clk 0:00:14.5]} 44. Ne5 {[%clk
0:00:12.2]} 44... Ng5 {[%clk 0:00:13.3]} 45. Qd4 {[%clk 0:00:12.2]} 45... Kh7
{[%clk 0:00:11.7]} 46. h4 {[%clk 0:00:12.4]} 46... Nh3+ {[%clk 0:00:12.3]} 47.
Kg2 {[%clk 0:00:13.5]} 47... Qb7+ {[%clk 0:00:12.6]} 48. f3 {[%clk 0:00:14.2]}
48... Qa6 {[%clk 0:00:13.8]} 49. Rd2 {[%clk 0:00:13.1]} 49... Be6 {[%clk
0:00:12.9]} 50. g4 {[%clk 0:00:14]} 50... Qa3 {[%clk 0:00:11.8]} 51. Kxh3 {[%clk
0:00:13.4]} 51... Qc1 {[%clk 0:00:13.4]} 52. Kg2 {[%clk 0:00:14.3]} 52... Qe1
{[%clk 0:00:14.1]} 53. Rb2 {[%clk 0:00:12.6]} 53... Qxh4 {[%clk 0:00:14.9]} 54.
Qf2 {[%clk 0:00:14.2]} 54... Qf6 {[%clk 0:00:15.1]} 55. Nd3 {[%clk 0:00:15.6]}
55... Qc3 {[%clk 0:00:15.9]} 56. Rb6 {[%clk 0:00:14.7]} 56... Qc7 {[%clk
0:00:15.1]} 57. Qc5 {[%clk 0:00:15.1]} 57... Qd7 {[%clk 0:00:15.5]} 58. Qe3
{[%clk 0:00:13.3]} 58... Qc7 {[%clk 0:00:16.4]} 59. Rxe6 {[%clk 0:00:12.4]}
59... fxe6 {[%clk 0:00:17.1]} 60. Qxe6 {[%clk 0:00:14.3]} 60... h5 {[%clk
0:00:17.7]} 61. gxh5 {[%clk 0:00:15.1]} 61... gxh5 {[%clk 0:00:19.1]} 62. Qf5+
{[%clk 0:00:16.6]} 62... Kh6 {[%clk 0:00:19.9]} 63. Nf4 {[%clk 0:00:17.1]} 63...
Qg7+ {[%clk 0:00:20.3]} 64. Kf2 {[%clk 0:00:18]} 64... Qg5 {[%clk 0:00:20.4]}
65. Qxg5+ {[%clk 0:00:18.7]} 65... Kxg5 {[%clk 0:00:22.1]} 66. Nxh5 {[%clk
0:00:20.4]} 1-0

[Event "*** Titled Tuesday 3|2 Blitz"]
[Site "Chess.com"]
[Date "2015.12.01"]
[Round "3"]
[White "kungmongmanh"]
[Black "StellarChessPro"]
[Result "1-0"]
[WhiteElo "2390"]
[BlackElo "2252"]
[TimeControl "180+2"]
[EndTime "17:38:42 PST"]
[Termination "kungmongmanh won by resignation"]

1. d4 {[%clk 0:03:01.9]} 1... d5 {[%clk 0:03:01]} 2. c4 {[%clk 0:03:02.2]} 2...
c6 {[%clk 0:03:02.9]} 3. Nc3 {[%clk 0:03:03.1]} 3... Nf6 {[%clk 0:03:04.1]} 4.
Nf3 {[%clk 0:03:04.2]} 4... e6 {[%clk 0:03:05.7]} 5. cxd5 {[%clk 0:03:04.3]}
5... exd5 {[%clk 0:03:06.7]} 6. Bg5 {[%clk 0:03:05.4]} 6... Bf5 {[%clk
0:03:07.3]} 7. Qb3 {[%clk 0:03:06]} 7... Qb6 {[%clk 0:03:08.2]} 8. e3 {[%clk
0:03:03.6]} 8... Nbd7 {[%clk 0:03:08.4]} 9. Be2 {[%clk 0:03:03.8]} 9... Bd6
{[%clk 0:03:08.8]} 10. O-O {[%clk 0:03:02.1]} 10... h6 {[%clk 0:03:10.2]} 11.
Bh4 {[%clk 0:03:02.8]} 11... O-O {[%clk 0:03:10.7]} 12. Qxb6 {[%clk 0:02:56.4]}
12... axb6 {[%clk 0:03:11.6]} 13. a3 {[%clk 0:02:56.4]} 13... b5 {[%clk
0:03:12.7]} 14. Bg3 {[%clk 0:02:55.4]} 14... Bxg3 {[%clk 0:03:13.3]} 15. hxg3
{[%clk 0:02:57.3]} 15... Nb6 {[%clk 0:03:14.6]} 16. Nd2 {[%clk 0:02:53]} 16...
Nc4 {[%clk 0:03:13.6]} 17. Nxc4 {[%clk 0:02:46.6]} 17... bxc4 {[%clk 0:03:15.5]}
18. f3 {[%clk 0:02:41.2]} 18... Rfe8 {[%clk 0:03:14.2]} 19. Kf2 {[%clk
0:02:42.3]} 19... Re7 {[%clk 0:03:07.2]} 20. Rae1 {[%clk 0:02:28.4]} 20... Rae8
{[%clk 0:03:06.7]} 21. Bd1 {[%clk 0:02:29.1]} 21... b5 {[%clk 0:03:07.5]} 22.
Rh1 {[%clk 0:02:27]} 22... Bd3 {[%clk 0:03:07.6]} 23. g4 {[%clk 0:02:19.3]}
23... Re6 {[%clk 0:02:56.9]} 24. Rh3 {[%clk 0:02:15.5]} 24... Kf8 {[%clk
0:02:56.2]} 25. f4 {[%clk 0:02:12.6]} 25... Ne4+ {[%clk 0:02:54.4]} 26. Nxe4
{[%clk 0:02:10.6]} 26... Bxe4 {[%clk 0:02:55.7]} 27. Rg3 {[%clk 0:02:05.5]}
27... Ke7 {[%clk 0:02:56.4]} 28. Rh1 {[%clk 0:02:05.7]} 28... Kd7 {[%clk
0:02:51.6]} 29. g5 {[%clk 0:02:04.4]} 29... hxg5 {[%clk 0:02:48.1]} 30. Rxg5
{[%clk 0:02:01.9]} 30... g6 {[%clk 0:02:47]} 31. Rh7 {[%clk 0:02:01.3]} 31...
R8e7 {[%clk 0:02:47.8]} 32. Rh8 {[%clk 0:01:57.3]} 32... Bd3 {[%clk 0:02:43.7]}
33. Rg3 {[%clk 0:01:54.7]} 33... Kc7 {[%clk 0:02:39.6]} 34. Bg4 {[%clk
0:01:54.8]} 34... Rd6 {[%clk 0:02:28.6]} 35. Rc8+ {[%clk 0:01:44.7]} 35... Kb7
{[%clk 0:02:23.5]} 36. Rf8 {[%clk 0:01:45.2]} 36... Kc7 {[%clk 0:02:20.6]} 37.
Rc8+ {[%clk 0:01:45.7]} 37... Kb7 {[%clk 0:02:21.4]} 38. Rf8 {[%clk 0:01:46.8]}
38... Be4 {[%clk 0:02:04.7]} 39. Bc8+ {[%clk 0:01:40.1]} 39... Kc7 {[%clk
0:02:03.6]} 40. Bg4 {[%clk 0:01:41.1]} 40... Rd8 {[%clk 0:02:04.4]} 41. Rxd8
{[%clk 0:01:40.2]} 41... Kxd8 {[%clk 0:02:06.3]} 42. Rh3 {[%clk 0:01:41.4]}
42... Rb7 {[%clk 0:01:35.8]} 43. Rh8+ {[%clk 0:01:33.9]} 43... Kc7 {[%clk
0:01:36.2]} 44. Rc8+ {[%clk 0:01:28.4]} 44... Kb6 {[%clk 0:01:37.6]} 45. Bf3
{[%clk 0:01:21]} 45... Bd3 {[%clk 0:01:30.9]} 46. Rd8 {[%clk 0:01:16.9]} 46...
Rc7 {[%clk 0:01:29.6]} 47. Rb8+ {[%clk 0:01:16.1]} 47... Ka7 {[%clk 0:01:30.6]}
48. Rd8 {[%clk 0:01:15.7]} 48... Kb7 {[%clk 0:01:30.6]} 49. Rd6 {[%clk
0:01:15.4]} 49... Re7 {[%clk 0:01:22.4]} 50. g4 {[%clk 0:01:15.1]} 50... Kc7
{[%clk 0:01:23.5]} 51. Rf6 {[%clk 0:01:16.2]} 51... Kd7 {[%clk 0:01:18.3]} 52.
f5 {[%clk 0:01:12.4]} 52... gxf5 {[%clk 0:01:13.2]} 53. gxf5 {[%clk 0:01:14.3]}
53... Kc7 {[%clk 0:01:07.6]} 54. Bh5 {[%clk 0:01:14.9]} 54... Re8 {[%clk
0:00:59.6]} 55. Rxf7+ {[%clk 0:01:12.7]} 55... Kb6 {[%clk 0:00:56.6]} 56. Bf3
{[%clk 0:00:58.8]} 56... b4 {[%clk 0:00:51.9]} 57. axb4 {[%clk 0:00:59.5]} 57...
Kb5 {[%clk 0:00:53.4]} 58. Rb7+ {[%clk 0:00:59.7]} 58... Ka6 {[%clk 0:00:52.5]}
59. Rc7 {[%clk 0:01:00.4]} 59... Kb5 {[%clk 0:00:53.2]} 60. Rb7+ {[%clk
0:00:49.9]} 60... Ka6 {[%clk 0:00:53.3]} 61. Rf7 {[%clk 0:00:50.7]} 61... Kb5
{[%clk 0:00:53.5]} 62. f6 {[%clk 0:00:47.6]} 62... Kxb4 {[%clk 0:00:52.8]} 63.
Rb7+ {[%clk 0:00:48.2]} 63... Ka5 {[%clk 0:00:53.7]} 64. f7 {[%clk 0:00:45.6]}
64... Rf8 {[%clk 0:00:54.6]} 65. Bh5 {[%clk 0:00:46.8]} 65... Ka6 {[%clk
0:00:54.7]} 66. Re7 {[%clk 0:00:46.9]} 66... c5 {[%clk 0:00:54.4]} 67. dxc5
{[%clk 0:00:47.4]} 67... Kb5 {[%clk 0:00:55.5]} 68. Re8 {[%clk 0:00:47.2]} 68...
Rxf7+ {[%clk 0:00:53.8]} 69. Bxf7 {[%clk 0:00:48.3]} 69... Kxc5 {[%clk
0:00:55.7]} 70. Rb8 {[%clk 0:00:45.2]} 70... Be4 {[%clk 0:00:56.4]} 71. Kg3
{[%clk 0:00:46.1]} 71... Kd6 {[%clk 0:00:57.4]} 72. Kf4 {[%clk 0:00:47.1]} 72...
Kc7 {[%clk 0:00:59.3]} 73. Rh8 {[%clk 0:00:45.7]} 73... Kd6 {[%clk 0:01:01.2]}
74. Rh6+ {[%clk 0:00:45.8]} 74... Kc5 {[%clk 0:01:02.5]} 75. Ke5 {[%clk
0:00:46]} 75... c3 {[%clk 0:01:00.5]} 76. bxc3 {[%clk 0:00:46.7]} 76... Kc4
{[%clk 0:01:02]} 77. Rc6+ {[%clk 0:00:47.8]} 77... Kd3 {[%clk 0:01:02.6]} 78.
Rh6 {[%clk 0:00:48.8]} 1-0

[Event "*** Titled Tuesday 3|2 Blitz"]
[Site "Chess.com"]
[Date "2015.12.01"]
[Round "3"]
[White "BellJackson95"]
[Black "LoggiaFelixdaMaria"]
[Result "1/2-1/2"]
[WhiteElo "2173"]
[BlackElo "2092"]
[TimeControl "180+2"]
[EndTime "17:38:52 PST"]
[Termination "Game drawn by agreement"]

1. e4 {[%clk 0:03:01.9]} 1... c5 {[%clk 0:02:58.6]} 2. d4 {[%clk 0:03:02.1]}
2... cxd4 {[%clk 0:02:58.5]} 3. Nf3 {[%clk 0:03:03]} 3... Nc6 {[%clk 0:02:58.8]}
4. c3 {[%clk 0:03:03.3]} 4... d6 {[%clk 0:02:59.5]} 5. cxd4 {[%clk 0:03:03.1]}
5... Nf6 {[%clk 0:02:59]} 6. d5 {[%clk 0:03:00.2]} 6... Nb8 {[%clk 0:02:58.5]}
7. Nc3 {[%clk 0:02:59.1]} 7... g6 {[%clk 0:02:59.3]} 8. e5 {[%clk 0:02:50.4]}
8... dxe5 {[%clk 0:02:59.4]} 9. Nxe5 {[%clk 0:02:52.3]} 9... Bg7 {[%clk
0:03:00.2]} 10. Bb5+ {[%clk 0:02:47.5]} 10... Nbd7 {[%clk 0:03:00.3]} 11. O-O
{[%clk 0:02:42.9]} 11... O-O {[%clk 0:03:00.9]} 12. Nxd7 {[%clk 0:02:41.8]}
12... Bxd7 {[%clk 0:03:01.8]} 13. Bc4 {[%clk 0:02:39]} 13... Rc8 {[%clk
0:03:02.1]} 14. Bb3 {[%clk 0:02:39.4]} 14... Qa5 {[%clk 0:03:00.3]} 15. Re1
{[%clk 0:02:35.2]} 15... Rfe8 {[%clk 0:02:54.8]} 16. Bf4 {[%clk 0:02:33.8]}
16... b5 {[%clk 0:02:49.9]} 17. a3 {[%clk 0:02:13.3]} 17... Qb6 {[%clk
0:02:40.3]} 18. Be3 {[%clk 0:02:07.9]} 18... Qb7 {[%clk 0:02:40]} 19. Bd4 {[%clk
0:02:03.2]} 19... a5 {[%clk 0:02:40.3]} 20. Be5 {[%clk 0:01:51.2]} 20... a4
{[%clk 0:02:23.4]} 21. Ba2 {[%clk 0:01:48.6]} 21... b4 {[%clk 0:02:24.3]} 22.
axb4 {[%clk 0:01:47.1]} 22... Qxb4 {[%clk 0:02:26.2]} 23. Rb1 {[%clk 0:01:41.6]}
23... Bf5 {[%clk 0:02:26.2]} 24. Ra1 {[%clk 0:01:34.1]} 24... Ne4 {[%clk
0:01:47.6]} 25. Bxg7 {[%clk 0:01:29.9]} 25... Kxg7 {[%clk 0:01:48.2]} 26. Qxa4
{[%clk 0:01:16.9]} 26... Qxa4 {[%clk 0:01:31.4]} 27. Nxa4 {[%clk 0:01:18.8]}
27... Nd6 {[%clk 0:01:20]} 28. Bb1 {[%clk 0:01:10]} 28... Bxb1 {[%clk
0:01:14.6]} 29. Raxb1 {[%clk 0:01:11.9]} 29... Rc2 {[%clk 0:01:12.9]} 30. b4
{[%clk 0:01:05.8]} 30... Ra8 {[%clk 0:01:13.2]} 31. Nc5 {[%clk 0:00:45.8]} 31...
Raa2 {[%clk 0:01:11.8]} 32. Rf1 {[%clk 0:00:45.3]} 32... Nc4 {[%clk 0:00:58.1]}
33. Rbc1 {[%clk 0:00:43.4]} 33... Rxc1 {[%clk 0:00:55]} 34. Rxc1 {[%clk
0:00:45.3]} 34... Nb6 {[%clk 0:00:50.2]} 35. h3 {[%clk 0:00:39.5]} 35... Nxd5
{[%clk 0:00:49.4]} 36. Rb1 {[%clk 0:00:39.5]} 36... Nc3 {[%clk 0:00:49.4]} 37.
Rb3 {[%clk 0:00:38]} 37... Ne2+ {[%clk 0:00:43.8]} 38. Kh2 {[%clk 0:00:38.1]}
38... Nd4 {[%clk 0:00:44.9]} 39. Rd3 {[%clk 0:00:35.6]} 39... Nb5 {[%clk
0:00:39.3]} 40. f3 {[%clk 0:00:33.9]} 40... Rb2 {[%clk 0:00:40]} 41. Rd7 {[%clk
0:00:34.1]} 41... Rxb4 {[%clk 0:00:19.2]} 42. Rxe7 {[%clk 0:00:34]} 42... h5
{[%clk 0:00:18.9]} 43. Rb7 {[%clk 0:00:30.9]} 43... Rb1 {[%clk 0:00:17.5]} 44.
Ne6+ {[%clk 0:00:20.9]} 44... Kf6 {[%clk 0:00:17.7]} 45. Nc7 {[%clk 0:00:19.6]}
45... Nc3 {[%clk 0:00:18.5]} 46. Ne8+ {[%clk 0:00:19.9]} 46... Ke6 {[%clk
0:00:18.2]} 47. Ra7 {[%clk 0:00:18.3]} 47... h4 {[%clk 0:00:16.3]} 48. Nc7+
{[%clk 0:00:12.9]} 48... Kf6 {[%clk 0:00:15.5]} 49. Ra6+ {[%clk 0:00:11.3]}
49... Kg7 {[%clk 0:00:15.1]} 50. Ra7 {[%clk 0:00:06.5]} 50... Ne2 {[%clk
0:00:14.9]} 51. Ne6+ {[%clk 0:00:06.6]} 51... Kf6 {[%clk 0:00:15.8]} 52. Nc5
{[%clk 0:00:06.5]} 52... Ng3 {[%clk 0:00:16.5]} 53. Ne4+ {[%clk 0:00:08.4]}
53... Nxe4 {[%clk 0:00:16.7]} 54. fxe4 {[%clk 0:00:10.3]} 54... Rb4 {[%clk
0:00:18]} 55. Ra6+ {[%clk 0:00:10.8]} 55... Kg5 {[%clk 0:00:19.1]} 56. e5 {[%clk
0:00:10]} 56... Re4 {[%clk 0:00:19.4]} 57. Ra7 {[%clk 0:00:10.2]} 57... Rxe5
{[%clk 0:00:15.8]} 58. Rxf7 {[%clk 0:00:11.4]} 58... Re3 {[%clk 0:00:16.2]} 59.
Rh7 {[%clk 0:00:10.5]} 59... Ra3 {[%clk 0:00:16]} 60. Rh8 {[%clk 0:00:10.9]}
1/2-1/2

[Event "*** Titled Tuesday 3|2 Blitz"]
[Site "Chess.com"]
[Date "2015.12.01"]
[Round "3"]
[White "Yaacovn"]
[Black "jcibarra"]
[Result "1-0"]
[WhiteElo "2635"]
[BlackElo "2510"]
[TimeControl "180+2"]
[EndTime "17:39:10 PST"]
[Termination "Yaacovn won by resignation"]

1. d4 {[%clk 0:03:01.9]} 1... Nf6 {[%clk 0:03:00]} 2. Nf3 {[%clk 0:03:02]} 2...
g6 {[%clk 0:03:00.9]} 3. c4 {[%clk 0:03:02.1]} 3... d6 {[%clk 0:03:01.6]} 4. Nc3
{[%clk 0:03:01.7]} 4... Bf5 {[%clk 0:03:03.1]} 5. g3 {[%clk 0:03:00.6]} 5... Ne4
{[%clk 0:03:00.7]} 6. Bg2 {[%clk 0:02:58.6]} 6... Nxc3 {[%clk 0:03:01]} 7. bxc3
{[%clk 0:03:00.1]} 7... Be4 {[%clk 0:03:02.6]} 8. Qb3 {[%clk 0:02:50.4]} 8...
Bg7 {[%clk 0:03:03.3]} 9. O-O {[%clk 0:02:45.6]} 9... O-O {[%clk 0:03:04.1]} 10.
Ba3 {[%clk 0:02:47]} 10... b6 {[%clk 0:03:03.2]} 11. c5 {[%clk 0:02:47]} 11...
Nc6 {[%clk 0:03:03.7]} 12. Rad1 {[%clk 0:02:43.3]} 12... Na5 {[%clk 0:03:03.1]}
13. Qa4 {[%clk 0:02:39.3]} 13... Qe8 {[%clk 0:03:01.1]} 14. Qb4 {[%clk
0:02:31.9]} 14... Qc6 {[%clk 0:02:57]} 15. c4 {[%clk 0:01:53]} 15... dxc5 {[%clk
0:02:34.1]} 16. dxc5 {[%clk 0:01:50.6]} 16... Nb7 {[%clk 0:02:27.1]} 17. cxb6
{[%clk 0:01:44.4]} 17... axb6 {[%clk 0:02:29]} 18. Bb2 {[%clk 0:01:21.5]} 18...
Ra4 {[%clk 0:02:22.6]} 19. Qxe7 {[%clk 0:01:19.3]} 19... Bxb2 {[%clk 0:01:31.6]}
20. Nd4 {[%clk 0:01:19.3]} 20... Bxd4 {[%clk 0:01:07.7]} 21. Bxe4 {[%clk
0:01:18.8]} 21... Qc5 {[%clk 0:01:00.6]} 22. Qxc5 {[%clk 0:00:41.7]} 22... Nxc5
{[%clk 0:00:54.3]} 23. Rxd4 {[%clk 0:00:42.3]} 23... Rxa2 {[%clk 0:00:52.7]} 24.
Bf3 {[%clk 0:00:42.5]} 24... Rc2 {[%clk 0:00:50.6]} 25. Rfd1 {[%clk 0:00:36.8]}
25... Ne6 {[%clk 0:00:45]} 26. Rd7 {[%clk 0:00:32.8]} 26... Rxc4 {[%clk
0:00:32.9]} 27. Bd5 {[%clk 0:00:32.8]} 27... Rc5 {[%clk 0:00:33.5]} 28. Bxe6
{[%clk 0:00:25.4]} 28... fxe6 {[%clk 0:00:35.4]} 29. Re7 {[%clk 0:00:26.3]}
29... Rf7 {[%clk 0:00:36.3]} 30. Rxe6 {[%clk 0:00:25]} 30... b5 {[%clk
0:00:37.6]} 31. Rd8+ {[%clk 0:00:20.8]} 31... Kg7 {[%clk 0:00:38.5]} 32. Rb8
{[%clk 0:00:20.5]} 32... Rd7 {[%clk 0:00:32.5]} 33. Kg2 {[%clk 0:00:19.5]} 33...
Kf7 {[%clk 0:00:32.4]} 34. Re3 {[%clk 0:00:20.1]} 34... Re7 {[%clk 0:00:30.7]}
35. Rf3+ {[%clk 0:00:21.2]} 35... Kg7 {[%clk 0:00:32]} 36. Rb3 {[%clk 0:00:20]}
36... Rxe2 {[%clk 0:00:29.9]} 37. R8xb5 {[%clk 0:00:20.1]} 37... Rxb5 {[%clk
0:00:28.2]} 38. Rxb5 {[%clk 0:00:22]} 38... Re8 {[%clk 0:00:26.3]} 39. Rc5
{[%clk 0:00:21.6]} 39... Rc8 {[%clk 0:00:27.1]} 40. Rc6 {[%clk 0:00:23]} 40...
Kf7 {[%clk 0:00:28.5]} 41. Kh3 {[%clk 0:00:23.4]} 41... Ke7 {[%clk 0:00:29.1]}
42. Kg4 {[%clk 0:00:24.7]} 42... Kd7 {[%clk 0:00:29.4]} 43. Rc1 {[%clk
0:00:26.2]} 43... c5 {[%clk 0:00:30.4]} 44. Kg5 {[%clk 0:00:27.1]} 44... Ke6
{[%clk 0:00:30.9]} 45. f4 {[%clk 0:00:25.7]} 45... Rc7 {[%clk 0:00:32.1]} 46. g4
{[%clk 0:00:27.2]} 46... c4 {[%clk 0:00:33.2]} 47. f5+ {[%clk 0:00:28.3]} 47...
gxf5 {[%clk 0:00:33.6]} 48. gxf5+ {[%clk 0:00:30.2]} 48... Ke5 {[%clk
0:00:34.7]} 49. Re1+ {[%clk 0:00:26.9]} 49... Kd5 {[%clk 0:00:35.2]} 50. f6
{[%clk 0:00:27.8]} 50... c3 {[%clk 0:00:35.2]} 51. Re7 {[%clk 0:00:26.1]} 51...
Rc8 {[%clk 0:00:33.6]} 52. f7 {[%clk 0:00:25.5]} 52... c2 {[%clk 0:00:34.2]} 53.
Re1 {[%clk 0:00:25.9]} 53... Rb8 {[%clk 0:00:23.4]} 54. Kf6 {[%clk 0:00:20.5]}
54... Kd4 {[%clk 0:00:13.3]} 55. Kg7 {[%clk 0:00:17.1]} 55... Rb1 {[%clk
0:00:12.1]} 56. f8=Q {[%clk 0:00:13.9]} 56... Rxe1 {[%clk 0:00:12]} 57. Qf2+
{[%clk 0:00:15.4]} 57... Re3 {[%clk 0:00:08.6]} 58. Qxc2 {[%clk 0:00:15.5]}
58... h5 {[%clk 0:00:10.5]} 59. h4 {[%clk 0:00:15]} 59... Re4 {[%clk 0:00:10.3]}
60. Kg6 {[%clk 0:00:14.7]} 60... Ke5 {[%clk 0:00:08.6]} 61. Qf2 {[%clk
0:00:14.6]} 61... Rg4+ {[%clk 0:00:05.3]} 62. Kxh5 {[%clk 0:00:14.3]} 62... Rg8
{[%clk 0:00:07]} 63. Qc5+ {[%clk 0:00:14.5]} 63... Kf6 {[%clk 0:00:08.1]} 64.
Qd6+ {[%clk 0:00:14.6]} 64... Kg7 {[%clk 0:00:09]} 65. Qe7+ {[%clk 0:00:14.5]}
65... Kh8 {[%clk 0:00:07.9]} 66. Kh6 {[%clk 0:00:15.1]} 1-0